[Event "Polugaevsky Memorial 2019"]
[Site "Samara"]
[Date "2019.07.15"]
[Round "6.2"]
[White "Tunik, Gennady"]
[Black "Shaposhnikov, Evgeny"]
[Result "1/2-1/2"]
[ECO "E15"]
[WhiteElo "2371"]
[BlackElo "2575"]
[Annotator "ChessBase"]
[PlyCount "202"]
[EventDate "2019.07.10"]
[EventType "swiss"]
[EventCountry "RUS"]
[SourceTitle "playchess.com"]
[Source "ChessBase"]
[SourceQuality "1"]
[TimeControl "5400+30"]

1. d4 {[%emt 0:00:00]} Nf6 {[%emt 0:00:00]} 2. c4 {[%emt 0:00:00]} e6 {[%emt 0:00:12]} 3. Nf3 {[%emt 0:00:04]} b6 {[%emt 0:00:25]} 4. g3 {[%emt 0:00:18]} Bb4+ {[%emt 0:00:50]} 5. Bd2 {[%emt 0:00:08]} Bxd2+ {[%emt 0:00:09]} 6. Qxd2 {[%emt 0:00:37]} Ba6 {[%emt 0:00:14]} 7. Qc2 {[%emt 0:01:19]} c5 {[%emt 0:00:41]} 8. Bg2 {[%emt 0:01:17]} Nc6 {[%emt 0:00:34]} 9. dxc5 {[%emt 0:02:48]} bxc5 {[%emt 0:00:06]} 10. O-O {[%emt 0:00:19]} O-O {[%emt 0:00:12]} 11. b3 {[%emt 0:01:47]} Rc8 {[%emt 0:03:01]} 12. Rd1 {[%emt 0:02:43]} d5 {[%emt 0:09:07]} 13. cxd5 {[%emt 0:08:57]} Nxd5 {[%emt 0:03:22]} 14. Qb2 {[%emt 0:02:09]} Qa5 {[%emt 0:00:52]} 15. a3 {[%emt 0:11:46]} Rfd8 {[%emt 0:02:09]} 16. h4 {[%emt 0:11:47]} Nd4 {[%emt 0:12:12]} 17. Nxd4 {[%emt 0:05:38]} cxd4 {[%emt 0:00:09]} 18. b4 {[%emt 0:00:35]} Qb6 {[%emt 0:17:43]} 19. Rxd4 {[%emt 0:03:53]} Bxe2 {[%emt 0:06:28]} 20. Nd2 {[%emt 0:02:53]} Bh5 {[%emt 0:08:51]} 21. Nb3 {[%emt 0:03:57]} Bg6 {[%emt 0:02:37]} 22. Rc1 {[%emt 0:00:18]} h6 {[%emt 0:01:18]} 23. Qd2 {[%emt 0:01:27]} Nf6 {[%emt 0:06:51]} 24. Rc5 {[%emt 0:02:43]} Kh7 {[%emt 0:01:09]} 25. Bf3 {[%emt 0:03:25]} Rxd4 {[%emt 0:00:27]} 26. Qxd4 {[%emt 0:00:24]} Rd8 {[%emt 0:00:06]} 27. Qc4 {[%emt 0:04:53]} Qd6 {[%emt 0:02:15]} 28. Kg2 {[%emt 0:00:33]} Qd3 {[%emt 0:04:08]} 29. Nc1 {[%emt 0:14:14]} Qxa3 {[%emt 0:01:41]} 30. h5 {[%emt 0:00:18]} Bb1 {[%emt 0:06:05]} 31. Qb3 {[%emt 0:04:01]} Qxb3 {[%emt 0:01:18]} 32. Nxb3 {[%emt 0:00:05]} Rb8 {[%emt 0:02:46]} 33. b5 {[%emt 0:01:41]} Be4 {[%emt 0:00:20]} 34. Nd4 {[%emt 0:00:35]} Rb7 {[%emt 0:00:59]} 35. Bxe4+ {[%emt 0:05:03]} Nxe4 {[%emt 0:00:03]} 36. Re5 {[%emt 0:01:02]} Nf6 {[%emt 0:01:05]} 37. f4 {[%emt 0:00:55]} Rd7 {[%emt 0:00:46]} 38. Nc6 {[%emt 0:00:10]} Rd2+ {[%emt 0:02:26]} 39. Kf3 {[%emt 0:00:08]} Ra2 {[%emt 0:00:15]} 40. f5 {[%emt 0:00:00]} exf5 {[%emt 0:00:00]} 41. Rxf5 {[%emt 0:00:00]} a6 {[%emt 0:00:00]} 42. bxa6 {[%emt 0:00:00]} Rxa6 {[%emt 0:00:00]} 43. Na5 {[%emt 0:00:00]} Rb6 {[%emt 0:00:00]} 44. Nc4 {[%emt 0:00:00]} Rb3+ {[%emt 0:00:00]} 45. Ne3 {[%emt 0:00:00]} Nd7 {[%emt 0:00:00]} 46. Rd5 {[%emt 0:00:00]} Nf8 {[%emt 0:00:00]} 47. g4 {[%emt 0:00:00]} Ne6 {[%emt 0:00:00]} 48. Rd7 {[%emt 0:00:00]} Ng5+ {[%emt 0:00:00]} 49. Kf2 {[%emt 0:00:00]} Ne4+ {[%emt 0:00:00]} 50. Kf3 {[%emt 0:00:00]} Nf6 {[%emt 0:00:00]} 51. Rd4 {[%emt 0:00:00]} Ra3 {[%emt 0:00:00]} 52. Kf2 {[%emt 0:00:00]} Ra8 {[%emt 0:00:00]} 53. Kf3 {[%emt 0:00:00]} Kg8 {[%emt 0:00:00]} 54. Rd3 {[%emt 0:00:00]} Nh7 {[%emt 0:00:00]} 55. Rd4 {[%emt 0:00:00]} Ng5+ {[%emt 0:00:00]} 56. Kf2 {[%emt 0:00:00]} Ra2+ {[%emt 0:00:00]} 57. Kg3 {[%emt 0:00:00]} Re2 {[%emt 0:00:00]} 58. Rd8+ {[%emt 0:00:00]} Kh7 {[%emt 0:00:00]} 59. Rd3 {[%emt 0:00:00]} Ra2 {[%emt 0:00:00]} 60. Rd4 {[%emt 0:00:00]} Ra1 {[%emt 0:00:00]} 61. Kf2 {[%emt 0:00:00]} Rh1 {[%emt 0:00:00]} 62. Kg2 {[%emt 0:00:00]} Rh3 {[%emt 0:00:00]} 63. Kf2 {[%emt 0:00:00]} Rf3+ {[%emt 0:00:00]} 64. Ke2 {[%emt 0:00:00]} Rf6 {[%emt 0:00:00]} 65. Ra4 {[%emt 0:00:00]} Rb6 {[%emt 0:00:00]} 66. Kf2 {[%emt 0:00:00]} Rb8 {[%emt 0:00:00]} 67. Rd4 {[%emt 0:00:00]} Re8 {[%emt 0:00:00]} 68. Rb4 {[%emt 0:00:00]} Kg8 {[%emt 0:00:00]} 69. Rd4 {[%emt 0:00:00]} Kf8 {[%emt 0:00:00]} 70. Nf5 {[%emt 0:00:00]} Ra8 {[%emt 0:00:00]} 71. Rd3 {[%emt 0:00:00]} Ne6 {[%emt 0:01:00]} 72. Kg3 {[%emt 0:00:00]} Ra4 {[%emt 0:03:10]} 73. Rb3 {[%emt 0:00:00]} Kg8 {[%emt 0:00:08]} 74. Rd3 {[%emt 0:00:00]} Kh7 {[%emt 0:00:37]} 75. Rc3 {[%emt 0:00:00]} Ng5 {[%emt 0:00:10]} 76. Rd3 {[%emt 0:00:00]} Ne4+ {[%emt 0:00:44]} 77. Kf3 {[%emt 0:00:00]} Nf6 {[%emt 0:00:38]} 78. Ne3 {[%emt 0:00:00]} g6 {[%emt 0:01:49]} 79. hxg6+ {[%emt 0:00:01]} Kxg6 {[%emt 0:00:07]} 80. Rb3 {[%emt 0:01:06]} Ne4 {[%emt 0:00:44]} 81. Rb6+ {[%emt 0:01:50]} f6 {[%emt 0:00:50]} 82. Rb8 {[%emt 0:01:32]} Ng5+ {[%emt 0:00:26]} 83. Kg3 {[%emt 0:00:28]} Ra3 {[%emt 0:00:27]} 84. Kf2 {[%emt 0:00:17]} Ne4+ {[%emt 0:02:44]} 85. Kf3 {[%emt 0:00:17]} Nd6 {[%emt 0:00:12]} 86. Rb4 {[%emt 0:00:57]} Kg5 {[%emt 0:00:37]} 87. Kf2 {[%emt 0:02:43]} Ra6 {[%emt 0:01:34]} 88. Kg3 {[%emt 0:01:20]} Ra3 {[%emt 0:01:50]} 89. Kf2 {[%emt 0:00:10]} Ra7 {[%emt 0:03:52]} 90. Kg3 {[%emt 0:00:30]} Ra8 {[%emt 0:01:16]} 91. Rd4 {[%emt 0:00:39]} Nf7 {[%emt 0:00:39]} 92. Rd7 {[%emt 0:00:32]} Ra3 {[%emt 0:01:37]} 93. Rxf7 {[%emt 0:00:52]} Rxe3+ {[%emt 0:00:04]} 94. Kf2 {[%emt 0:00:03]} Ra3 {[%emt 0:02:48]} 95. Rg7+ {[%emt 0:00:14]} Kf4 {[%emt 0:00:05]} 96. Rg6 {[%emt 0:00:12]} Ra2+ {[%emt 0:00:21]} 97. Kg1 {[%emt 0:00:14]} Ra6 {[%emt 0:01:05]} 98. Kg2 {[%emt 0:00:27]} Rd6 {[%emt 0:00:28]} 99. Kf2 {[%emt 0:00:35]} Ra6 {[%emt 0:00:51]} 100. Kg2 {[%emt 0:00:05]} Rd6 {[%emt 0:00:06]} 101. Kf2 {[%emt 0:00:05]} Ra6 {[%emt 0:00:13]} 1/2-1/2

[Event "Polugaevsky Memorial 2019"]
[Site "Samara"]
[Date "2019.07.15"]
[Round "6.3"]
[White "Yatzenko, Anton"]
[Black "Goganov, Aleksey"]
[Result "1/2-1/2"]
[ECO "D02"]
[WhiteElo "2355"]
[BlackElo "2561"]
[Annotator "ChessBase"]
[PlyCount "80"]
[EventDate "2019.07.10"]
[EventType "swiss"]
[EventCountry "RUS"]
[SourceTitle "playchess.com"]
[Source "ChessBase"]
[SourceQuality "1"]
[TimeControl "5400+30"]

1. d4 {[%emt 0:00:20]} d5 {[%emt 0:00:00]} 2. Nf3 {[%emt 0:00:32]} Nf6 {[%emt 0:00:00]} 3. Bf4 {[%emt 0:00:17]} e6 {[%emt 0:00:00]} 4. e3 {[%emt 0:00:04]} c5 {[%emt 0:00:00]} 5. Nbd2 {[%emt 0:00:22]} Nc6 {[%emt 0:00:07]} 6. c3 {[%emt 0:00:11]} Bd6 {[%emt 0:01:30]} 7. Bg3 {[%emt 0:00:06]} O-O {[%emt 0:00:06]} 8. Bb5 {[%emt 0:00:19]} Be7 {[%emt 0:00:51]} 9. dxc5 {[%emt 0:00:18]} Bxc5 {[%emt 0:01:13]} 10. O-O {[%emt 0:00:06]} Be7 {[%emt 0:12:36]} 11. Qe2 {[%emt 0:05:23]} Nh5 {[%emt 0:00:48]} 12. c4 {[%emt 0:04:56]} Nxg3 {[%emt 0:00:15]} 13. hxg3 {[%emt 0:00:03]} Bf6 {[%emt 0:08:17]} 14. cxd5 {[%emt 0:01:41]} exd5 {[%emt 0:00:28]} 15. Nb3 {[%emt 0:01:03]} Qb6 {[%emt 0:07:05]} 16. Rac1 {[%emt 0:03:51]} Bxb2 {[%emt 0:09:28]} 17. Qxb2 {[%emt 0:06:18]} Qxb5 {[%emt 0:00:19]} 18. Rc5 {[%emt 0:01:32]} Qb6 {[%emt 0:10:53]} 19. Rxd5 {[%emt 0:00:29]} Be6 {[%emt 0:00:12]} 20. Rd2 {[%emt 0:00:45]} Bxb3 {[%emt 0:05:16]} 21. axb3 {[%emt 0:01:17]} Rad8 {[%emt 0:00:39]} 22. Rfd1 {[%emt 0:01:38]} Rxd2 {[%emt 0:00:06]} 23. Rxd2 {[%emt 0:00:05]} Rd8 {[%emt 0:00:09]} 24. Qc2 {[%emt 0:14:01]} Rxd2 {[%emt 0:00:36]} 25. Nxd2 {[%emt 0:00:05]} Qa5 {[%emt 0:04:16]} 26. Qd3 {[%emt 0:04:24]} Qd8 {[%emt 0:00:09]} 27. Qe4 {[%emt 0:04:37]} h6 {[%emt 0:00:15]} 28. Nc4 {[%emt 0:01:58]} g6 {[%emt 0:04:30]} 29. Qc2 {[%emt 0:11:47]} Nb4 {[%emt 0:03:42]} 30. Qc3 {[%emt 0:02:58]} Qd1+ {[%emt 0:00:57]} 31. Kh2 {[%emt 0:00:04]} Nd3 {[%emt 0:03:36]} 32. Qf6 {[%emt 0:09:14]} Qxb3 {[%emt 0:02:04]} 33. Nd6 {[%emt 0:03:11]} Qd5 {[%emt 0:13:43]} 34. f3 {[%emt 0:04:39]} Ne1 {[%emt 0:07:27]} 35. Ne8 {[%emt 0:03:37]} Kf8 {[%emt 0:00:34]} 36. Nd6 {[%emt 0:03:01]} Qa2 {[%emt 0:00:58]} 37. Qd8+ {[%emt 0:00:17]} Kg7 {[%emt 0:00:05]} 38. Ne8+ {[%emt 0:00:08]} Kh7 {[%emt 0:00:11]} 39. Nf6+ {[%emt 0:00:05]} Kg7 {[%emt 0:00:03]} 40. Ne8+ {[%emt 0:00:00]} Kh7 {[%emt 0:00:00]} 1/2-1/2

[Event "Polugaevsky Memorial 2019"]
[Site "Samara"]
[Date "2019.07.15"]
[Round "6.4"]
[White "Gabrielian, Artur"]
[Black "Kopylov, Alexander A."]
[Result "1-0"]
[ECO "B13"]
[WhiteElo "2458"]
[BlackElo "2410"]
[Annotator "ChessBase"]
[PlyCount "101"]
[EventDate "2019.07.10"]
[EventType "swiss"]
[EventCountry "RUS"]
[SourceTitle "playchess.com"]
[Source "ChessBase"]
[SourceQuality "1"]
[TimeControl "5400+30"]

1. e4 {[%emt 0:00:00]} c6 {[%emt 0:00:00]} 2. d4 {[%emt 0:00:31]} d5 {[%emt 0:00:00]} 3. exd5 {[%emt 0:00:33]} cxd5 {[%emt 0:00:00]} 4. Bd3 {[%emt 0:00:18]} Nc6 {[%emt 0:09:35]} 5. c3 {[%emt 0:00:05]} g6 {[%emt 0:00:29]} 6. Nf3 {[%emt 0:00:19]} Bg7 {[%emt 0:01:39]} 7. O-O {[%emt 0:00:37]} Nh6 {[%emt 0:00:33]} 8. Bf4 {[%emt 0:05:15]} O-O {[%emt 0:03:11]} 9. Qd2 {[%emt 0:08:32]} Nf5 {[%emt 0:00:40]} 10. Na3 {[%emt 0:00:15]} f6 {[%emt 0:07:48]} 11. Rfe1 {[%emt 0:05:46]} Re8 {[%emt 0:03:05]} 12. Rad1 {[%emt 0:02:43]} e5 {[%emt 0:06:25]} 13. dxe5 {[%emt 0:02:43]} fxe5 {[%emt 0:00:10]} 14. Bg5 {[%emt 0:12:42]} Qb6 {[%emt 0:20:46]} 15. Bxf5 {[%emt 0:13:59]} gxf5 {[%emt 0:08:02]} 16. Qxd5+ {[%emt 0:13:28]} Be6 {[%emt 0:00:20]} 17. Qd2 {[%emt 0:01:06]} f4 {[%emt 0:13:24]} 18. Qe2 {[%emt 0:05:55]} h6 {[%emt 0:06:25]} 19. Bh4 {[%emt 0:00:16]} Bxa2 {[%emt 0:00:16]} 20. Nc4 {[%emt 0:04:22]} Qc7 {[%emt 0:06:33]} 21. Nfd2 {[%emt 0:04:57]} b5 {[%emt 0:01:36]} 22. Na3 {[%emt 0:00:32]} a6 {[%emt 0:02:21]} 23. Ne4 {[%emt 0:00:22]} Be6 {[%emt 0:03:51]} 24. Nb1 {[%emt 0:03:23]} Rf8 {[%emt 0:00:50]} 25. Rd6 {[%emt 0:02:45]} Bf5 {[%emt 0:01:19]} 26. Nbd2 {[%emt 0:01:48]} Rae8 {[%emt 0:00:15]} 27. Rd1 {[%emt 0:03:17]} Re6 {[%emt 0:00:56]} 28. Rxe6 {[%emt 0:00:15]} Bxe6 {[%emt 0:00:01]} 29. Nc5 {[%emt 0:00:17]} Bc8 {[%emt 0:01:34]} 30. Nde4 {[%emt 0:03:57]} f3 {[%emt 0:00:46]} 31. gxf3 {[%emt 0:00:23]} Ne7 {[%emt 0:00:10]} 32. Bg3 {[%emt 0:01:01]} Rd8 {[%emt 0:01:54]} 33. Rxd8+ {[%emt 0:02:22]} Qxd8 {[%emt 0:00:01]} 34. Qd3 {[%emt 0:00:19]} Qf8 {[%emt 0:00:58]} 35. Nd6 {[%emt 0:01:01]} Bh3 {[%emt 0:00:24]} 36. b4 {[%emt 0:01:03]} Kh8 {[%emt 0:00:54]} 37. Qe4 {[%emt 0:00:38]} Nf5 {[%emt 0:00:45]} 38. Nxf5 {[%emt 0:00:20]} Bxf5 {[%emt 0:00:02]} 39. Qd5 {[%emt 0:00:11]} Qe8 {[%emt 0:00:47]} 40. h4 {[%emt 0:00:00]} Bc8 {[%emt 0:00:00]} 41. Nd3 {[%emt 0:00:00]} Be6 {[%emt 0:00:00]} 42. Qd6 {[%emt 0:00:00]} Qg6 {[%emt 0:00:00]} 43. Qxa6 {[%emt 0:00:00]} Qxd3 {[%emt 0:00:00]} 44. Qxe6 {[%emt 0:00:00]} Qxc3 {[%emt 0:00:00]} 45. Qe8+ {[%emt 0:00:00]} Kh7 {[%emt 0:00:00]} 46. Qxb5 {[%emt 0:00:00]} Qxf3 {[%emt 0:00:00]} 47. Qd7 {[%emt 0:00:00]} Qe2 {[%emt 0:00:00]} 48. b5 {[%emt 0:00:00]} Qb2 {[%emt 0:00:00]} 49. Qc6 {[%emt 0:00:00]} Qb1+ {[%emt 0:00:00]} 50. Kh2 {[%emt 0:00:00]} e4 {[%emt 0:00:00]} 51. b6 {[%emt 0:00:00]} 1-0

[Event "Polugaevsky Memorial 2019"]
[Site "Samara"]
[Date "2019.07.15"]
[Round "6.5"]
[White "Ovetchkin, Roman"]
[Black "Zhigalko, Andrey"]
[Result "0-1"]
[ECO "E06"]
[WhiteElo "2538"]
[BlackElo "2549"]
[Annotator "ChessBase"]
[PlyCount "44"]
[EventDate "2019.07.10"]
[EventType "swiss"]
[EventCountry "RUS"]
[SourceTitle "playchess.com"]
[Source "ChessBase"]
[SourceQuality "1"]
[TimeControl "5400+30"]

1. d4 {[%emt 0:00:00]} Nf6 {[%emt 0:00:00]} 2. c4 {[%emt 0:00:00]} e6 {[%emt 0:00:00]} 3. Nf3 {[%emt 0:03:21]} d5 {[%emt 0:00:00]} 4. g3 {[%emt 0:00:07]} Be7 {[%emt 0:00:00]} 5. Bg2 {[%emt 0:00:58]} O-O {[%emt 0:00:00]} 6. O-O {[%emt 0:01:05]} dxc4 {[%emt 0:00:00]} 7. Qc2 {[%emt 0:08:31]} b5 {[%emt 0:00:53]} 8. a4 {[%emt 0:04:28]} b4 {[%emt 0:00:07]} 9. Ne5 {[%emt 0:20:36]} Qxd4 {[%emt 0:00:54]} 10. Nxc4 {[%emt 0:00:11]} Nd5 {[%emt 0:00:25]} 11. Be3 {[%emt 0:01:55]} Qg4 {[%emt 0:11:07]} 12. Nbd2 {[%emt 0:04:59]} Nd7 {[%emt 0:29:10]} 13. Rfd1 {[%emt 0:09:57]} Ba6 {[%emt 0:08:51]} 14. Rac1 {[%emt 0:15:37]} c5 {[%emt 0:00:10]} 15. a5 {[%emt 0:04:59]} Rad8 {[%emt 0:04:43]} 16. Qa4 {[%emt 0:10:24]} Qg6 {[%emt 0:08:13]} 17. Nf1 {[%emt 0:02:13]} Qf6 {[%emt 0:14:31]} 18. Rd2 {[%emt 0:06:04]} h6 {[%emt 0:08:07]} 19. Qb3 {[%emt 0:01:01]} Nb8 {[%emt 0:02:45]} 20. Rcd1 {[%emt 0:01:29]} Nc6 {[%emt 0:00:57]} 21. Qc2 {[%emt 0:00:41]} Nd4 {[%emt 0:03:05]} 22. Rxd4 {[%emt 0:01:37]} Nxe3 {[%emt 0:01:03]} 0-1

[Event "Polugaevsky Memorial 2019"]
[Site "Samara"]
[Date "2019.07.15"]
[Round "6.6"]
[White "Mamatov, Melis"]
[Black "Yeletsky, Ivan"]
[Result "1-0"]
[ECO "C77"]
[WhiteElo "2269"]
[BlackElo "2464"]
[Annotator "ChessBase"]
[PlyCount "75"]
[EventDate "2019.07.10"]
[EventType "swiss"]
[EventCountry "RUS"]
[SourceTitle "playchess.com"]
[Source "ChessBase"]
[SourceQuality "1"]
[TimeControl "5400+30"]

1. e4 {[%emt 0:00:00]} e5 {[%emt 0:08:51]} 2. Nf3 {[%emt 0:00:00]} Nc6 {[%emt 0:00:11]} 3. Bb5 {[%emt 0:00:07]} a6 {[%emt 0:00:09]} 4. Ba4 {[%emt 0:00:06]} Nf6 {[%emt 0:00:08]} 5. d3 {[%emt 0:00:12]} d6 {[%emt 0:01:36]} 6. c3 {[%emt 0:00:18]} g6 {[%emt 0:04:09]} 7. Bg5 {[%emt 0:00:29]} Bg7 {[%emt 0:00:23]} 8. Nbd2 {[%emt 0:00:21]} O-O {[%emt 0:01:35]} 9. Nf1 {[%emt 0:00:57]} h6 {[%emt 0:02:22]} 10. Bh4 {[%emt 0:00:34]} Ne7 {[%emt 0:14:57]} 11. Ne3 {[%emt 0:03:41]} c6 {[%emt 0:06:43]} 12. Bc2 {[%emt 0:00:45]} Nh5 {[%emt 0:02:21]} 13. d4 {[%emt 0:13:53]} Qc7 {[%emt 0:09:15]} 14. g4 {[%emt 0:13:22]} Nf4 {[%emt 0:02:59]} 15. Bg3 {[%emt 0:00:31]} c5 {[%emt 0:15:13]} 16. Qd2 {[%emt 0:10:08]} cxd4 {[%emt 0:01:16]} 17. cxd4 {[%emt 0:01:22]} Be6 {[%emt 0:05:55]} 18. d5 {[%emt 0:11:35]} Bd7 {[%emt 0:00:07]} 19. O-O-O {[%emt 0:00:34]} Bb5 {[%emt 0:02:53]} 20. Ng1 {[%emt 0:08:13]} f5 {[%emt 0:03:45]} 21. Kb1 {[%emt 0:09:17]} fxe4 {[%emt 0:05:23]} 22. Bxe4 {[%emt 0:00:21]} Rac8 {[%emt 0:00:09]} 23. h4 {[%emt 0:02:14]} Qb6 {[%emt 0:01:48]} 24. f3 {[%emt 0:05:38]} a5 {[%emt 0:04:06]} 25. Rh2 {[%emt 0:04:37]} Rc7 {[%emt 0:00:12]} 26. Qe1 {[%emt 0:05:45]} Rfc8 {[%emt 0:01:45]} 27. Rc2 {[%emt 0:00:01]} Rxc2 {[%emt 0:02:07]} 28. Nxc2 {[%emt 0:00:04]} Qa6 {[%emt 0:02:06]} 29. Qd2 {[%emt 0:02:31]} g5 {[%emt 0:00:56]} 30. h5 {[%emt 0:01:47]} Be8 {[%emt 0:00:54]} 31. Ne3 {[%emt 0:01:04]} Bf7 {[%emt 0:00:08]} 32. Bxf4 {[%emt 0:04:56]} exf4 {[%emt 0:00:07]} 33. Nf5 {[%emt 0:00:18]} Nxf5 {[%emt 0:00:06]} 34. Bxf5 {[%emt 0:00:15]} Rc5 {[%emt 0:00:47]} 35. Rc1 {[%emt 0:00:37]} Qb6 {[%emt 0:01:18]} 36. Ne2 {[%emt 0:00:48]} Bxb2 {[%emt 0:00:12]} 37. Qxb2 {[%emt 0:00:24]} Rb5 {[%emt 0:00:08]} 38. Rc8+ {[%emt 0:00:01]} 1-0

[Event "Polugaevsky Memorial 2019"]
[Site "Samara"]
[Date "2019.07.15"]
[Round "6.7"]
[White "Gusarov, Aleksey"]
[Black "Mokshanov Alexey"]
[Result "0-1"]
[ECO "C00"]
[WhiteElo "2258"]
[BlackElo "2454"]
[Annotator "ChessBase"]
[PlyCount "78"]
[EventDate "2019.07.10"]
[EventType "swiss"]
[EventCountry "RUS"]
[SourceTitle "playchess.com"]
[Source "ChessBase"]
[SourceQuality "1"]
[TimeControl "5400+30"]

1. e4 {[%emt 0:00:00]} e6 {[%emt 0:00:00]} 2. Qe2 {[%emt 0:00:00]} c5 {[%emt 0:00:00]} 3. g3 {[%emt 0:00:31]} Nc6 {[%emt 0:00:00]} 4. Nf3 {[%emt 0:00:05]} d6 {[%emt 0:02:07]} 5. Bg2 {[%emt 0:00:18]} g6 {[%emt 0:00:04]} 6. O-O {[%emt 0:01:36]} Bg7 {[%emt 0:00:03]} 7. c3 {[%emt 0:09:30]} Nge7 {[%emt 0:00:10]} 8. d4 {[%emt 0:14:37]} cxd4 {[%emt 0:03:22]} 9. cxd4 {[%emt 0:01:08]} Nxd4 {[%emt 0:04:04]} 10. Nxd4 {[%emt 0:00:59]} Bxd4 {[%emt 0:00:01]} 11. Bh6 {[%emt 0:00:52]} Nc6 {[%emt 0:08:28]} 12. Nc3 {[%emt 0:01:40]} a6 {[%emt 0:03:30]} 13. Rad1 {[%emt 0:04:00]} Qe7 {[%emt 0:25:05]} 14. Qc2 {[%emt 0:14:44]} Bxc3 {[%emt 0:07:27]} 15. bxc3 {[%emt 0:13:16]} e5 {[%emt 0:01:23]} 16. Qd2 {[%emt 0:10:16]} Be6 {[%emt 0:02:33]} 17. Qxd6 {[%emt 0:04:51]} Rd8 {[%emt 0:00:32]} 18. Qxe7+ {[%emt 0:00:39]} Kxe7 {[%emt 0:00:01]} 19. a3 {[%emt 0:01:26]} Bc4 {[%emt 0:02:24]} 20. Rfe1 {[%emt 0:01:50]} b5 {[%emt 0:02:36]} 21. f4 {[%emt 0:02:57]} f6 {[%emt 0:01:26]} 22. fxe5 {[%emt 0:05:25]} Nxe5 {[%emt 0:00:40]} 23. Be3 {[%emt 0:01:17]} Bb3 {[%emt 0:02:35]} 24. Rxd8 {[%emt 0:03:13]} Rxd8 {[%emt 0:00:26]} 25. Bd4 {[%emt 0:00:01]} Nc6 {[%emt 0:00:59]} 26. Bc5+ {[%emt 0:01:02]} Kf7 {[%emt 0:00:10]} 27. Rb1 {[%emt 0:03:01]} Ba2 {[%emt 0:00:30]} 28. Rb2 {[%emt 0:01:00]} Rd1+ {[%emt 0:01:28]} 29. Kf2 {[%emt 0:00:04]} Bc4 {[%emt 0:00:06]} 30. Bf3 {[%emt 0:00:51]} Rf1+ {[%emt 0:04:06]} 31. Ke3 {[%emt 0:01:31]} Rxf3+ {[%emt 0:04:27]} 32. Kxf3 Ne5+ 33. Ke3 {[%emt 0:00:47]} Nd3 {[%emt 0:00:01]} 34. Rd2 {[%emt 0:00:37]} Nxc5 {[%emt 0:00:02]} 35. Rd6 {[%emt 0:00:36]} a5 {[%emt 0:01:32]} 36. Rc6 {[%emt 0:00:41]} Nd7 {[%emt 0:01:07]} 37. a4 {[%emt 0:00:40]} Ke7 {[%emt 0:05:07]} 38. Kd4 {[%emt 0:00:21]} Ne5 {[%emt 0:01:11]} 39. Ra6 {[%emt 0:02:33]} bxa4 {[%emt 0:00:08]} 0-1

[Event "Polugaevsky Memorial 2019"]
[Site "Samara"]
[Date "2019.07.15"]
[Round "6.8"]
[White "Gaifullin, Artur"]
[Black "Kulaev Maxim"]
[Result "1/2-1/2"]
[ECO "A04"]
[WhiteElo "2453"]
[BlackElo "2177"]
[Annotator "ChessBase"]
[PlyCount "160"]
[EventDate "2019.07.10"]
[EventType "swiss"]
[EventCountry "RUS"]
[SourceTitle "playchess.com"]
[Source "ChessBase"]
[SourceQuality "1"]
[TimeControl "5400+30"]

1. Nf3 {[%emt 0:02:21]} e6 {[%emt 0:00:02]} 2. g3 {[%emt 0:00:14]} b5 {[%emt 0:05:42]} 3. Bg2 {[%emt 0:00:06]} Bb7 {[%emt 0:00:05]} 4. O-O {[%emt 0:00:05]} Nf6 {[%emt 0:00:32]} 5. Na3 {[%emt 0:00:52]} b4 {[%emt 0:13:32]} 6. Nc4 {[%emt 0:00:04]} d5 {[%emt 0:03:21]} 7. Nce5 {[%emt 0:01:28]} h6 {[%emt 0:06:54]} 8. d4 {[%emt 0:00:23]} c5 {[%emt 0:04:44]} 9. a3 {[%emt 0:05:16]} bxa3 {[%emt 0:03:40]} 10. Rxa3 {[%emt 0:01:11]} Nbd7 {[%emt 0:02:43]} 11. Nxd7 {[%emt 0:06:13]} Nxd7 {[%emt 0:03:13]} 12. Ra2 {[%emt 0:01:34]} Be7 {[%emt 0:01:37]} 13. Be3 {[%emt 0:05:22]} c4 {[%emt 0:09:09]} 14. Ne5 {[%emt 0:04:34]} Qc7 {[%emt 0:08:44]} 15. f4 {[%emt 0:06:07]} O-O {[%emt 0:00:55]} 16. Nf3 {[%emt 0:04:59]} f5 {[%emt 0:05:51]} 17. c3 {[%emt 0:00:29]} Bc6 {[%emt 0:01:07]} 18. h3 {[%emt 0:02:05]} a5 {[%emt 0:00:48]} 19. g4 {[%emt 0:00:50]} fxg4 {[%emt 0:01:29]} 20. hxg4 {[%emt 0:00:07]} Rxf4 {[%emt 0:01:56]} 21. Bxf4 {[%emt 0:00:04]} Qxf4 {[%emt 0:00:05]} 22. g5 {[%emt 0:21:02]} e5 {[%emt 0:08:03]} 23. Qd2 {[%emt 0:08:58]} Qg4 {[%emt 0:11:55]} 24. gxh6 {[%emt 0:05:05]} e4 {[%emt 0:01:13]} 25. Nh2 {[%emt 0:00:05]} Qg3 {[%emt 0:01:34]} 26. Qf4 {[%emt 0:00:22]} Qxf4 {[%emt 0:00:20]} 27. Rxf4 {[%emt 0:00:12]} gxh6 {[%emt 0:01:34]} 28. Ng4 {[%emt 0:00:27]} Bg5 {[%emt 0:00:42]} 29. Rf5 {[%emt 0:00:14]} a4 {[%emt 0:00:52]} 30. Bh3 {[%emt 0:00:16]} Rf8 {[%emt 0:00:44]} 31. Rxf8+ {[%emt 0:00:22]} Kxf8 {[%emt 0:00:09]} 32. Kf2 {[%emt 0:00:33]} Ke7 {[%emt 0:01:12]} 33. Ne3 {[%emt 0:00:55]} Nf6 {[%emt 0:00:17]} 34. Nf5+ {[%emt 0:03:15]} Kd8 {[%emt 0:00:55]} 35. Nd6 {[%emt 0:01:03]} Bc1 {[%emt 0:00:23]} 36. e3 {[%emt 0:01:57]} h5 {[%emt 0:00:19]} 37. Nf7+ {[%emt 0:11:11]} Kc7 {[%emt 0:00:09]} 38. Ng5 {[%emt 0:00:28]} Kd6 {[%emt 0:00:43]} 39. Bf5 {[%emt 0:00:40]} Ke7 {[%emt 0:00:24]} 40. Nh3 {[%emt 0:00:00]} Ng4+ {[%emt 0:00:00]} 41. Bxg4 hxg4 42. Nf4 {[%emt 0:00:00]} g3+ {[%emt 0:00:00]} 43. Ke2 {[%emt 0:00:00]} Kd6 {[%emt 0:00:00]} 44. Ng2 {[%emt 0:00:00]} a3 {[%emt 0:00:00]} 45. bxa3 {[%emt 0:00:00]} Ba4 {[%emt 0:00:00]} 46. Nf4 {[%emt 0:00:00]} Bb3 {[%emt 0:00:00]} 47. Ra1 {[%emt 0:00:00]} Bb2 {[%emt 0:00:00]} 48. Rh1 {[%emt 0:00:00]} Bxc3 {[%emt 0:00:00]} 49. Rh6+ {[%emt 0:00:00]} Kd7 {[%emt 0:00:00]} 50. Nxd5 {[%emt 0:00:00]} Ba5 {[%emt 0:00:00]} 51. Nf6+ {[%emt 0:00:00]} Ke7 {[%emt 0:00:00]} 52. Nxe4 {[%emt 0:00:00]} g2 {[%emt 0:00:00]} 53. Kf2 {[%emt 0:00:00]} c3 {[%emt 0:00:00]} 54. Nxc3 {[%emt 0:00:00]} Bxc3 {[%emt 0:00:00]} 55. Kxg2 {[%emt 0:00:00]} Bb2 {[%emt 0:00:00]} 56. Ra6 {[%emt 0:00:00]} Kd7 {[%emt 0:00:00]} 57. Kg3 {[%emt 0:00:00]} Kc7 {[%emt 0:00:00]} 58. Kf4 {[%emt 0:00:00]} Kb7 {[%emt 0:00:00]} 59. Ra5 {[%emt 0:00:00]} Kb6 {[%emt 0:00:00]} 60. Rc5 {[%emt 0:00:00]} Bxa3 {[%emt 0:00:00]} 61. Rc3 {[%emt 0:00:00]} Bd6+ {[%emt 0:00:00]} 62. Kf5 {[%emt 0:00:00]} Bg8 {[%emt 0:00:00]} 63. Rc8 {[%emt 0:00:00]} Ba2 {[%emt 0:00:00]} 64. e4 {[%emt 0:00:00]} Bc7 {[%emt 0:00:00]} 65. d5 {[%emt 0:00:00]} Bb1 {[%emt 0:00:00]} 66. Rh8 {[%emt 0:00:36]} Kc5 {[%emt 0:00:00]} 67. Rh1 {[%emt 0:00:08]} Bd3 {[%emt 0:00:00]} 68. Rh6 {[%emt 0:07:19]} Kd4 {[%emt 0:00:00]} 69. Re6 {[%emt 0:00:05]} Bxe4+ {[%emt 0:00:00]} 70. Rxe4+ {[%emt 0:00:02]} Kxd5 {[%emt 0:00:00]} 71. Re7 {[%emt 0:00:08]} Kc6 {[%emt 0:00:00]} 72. Ke6 {[%emt 0:00:05]} Kb7 {[%emt 0:00:31]} 73. Kd5 {[%emt 0:00:04]} Kb6 {[%emt 0:00:30]} 74. Re6+ {[%emt 0:00:19]} Kb7 {[%emt 0:00:08]} 75. Kc5 {[%emt 0:00:10]} Bh2 {[%emt 0:00:38]} 76. Rh6 {[%emt 0:00:06]} Bb8 {[%emt 0:00:45]} 77. Kb5 {[%emt 0:00:10]} Ka8 {[%emt 0:00:39]} 78. Rh7 {[%emt 0:00:39]} Bg3 {[%emt 0:00:38]} 79. Rg7 {[%emt 0:00:05]} Bf4 {[%emt 0:00:16]} 80. Kc6 {[%emt 0:00:03]} Be5 {[%emt 0:00:16]} 1/2-1/2